[Event "Early-Titled-Tuesday-Blitz-January-16-2024"]
[Site "Chess.com"]
[Date "2024.01.16"]
[Round "11"]
[White "Brahianzevich"]
[Black "ChainedDowntohell"]
[Result "0-1"]
[WhiteElo "2435"]
[BlackElo "2550"]
[TimeControl "180+1"]
[EndTime "10:10:38 PST"]
[Termination "ChainedDowntohell won on time"]

1. e4 {[%clk 0:02:59.9]} 1... b6 {[%clk 0:02:57.9]} 2. d4 {[%clk 0:02:56.4]}
2... Bb7 {[%clk 0:02:58.2]} 3. Nf3 {[%clk 0:02:55.7]} 3... Bxe4 {[%clk
0:02:57.6]} 4. Nbd2 {[%clk 0:02:54.1]} 4... Bb7 {[%clk 0:02:55.1]} 5. Bc4 {[%clk
0:02:48.7]} 5... e6 {[%clk 0:02:54.8]} 6. Qe2 {[%clk 0:02:48.7]} 6... Nf6 {[%clk
0:02:54.2]} 7. O-O {[%clk 0:02:48.4]} 7... Be7 {[%clk 0:02:54.1]} 8. Re1 {[%clk
0:02:48.5]} 8... O-O {[%clk 0:02:53.7]} 9. c3 {[%clk 0:02:48.4]} 9... c5 {[%clk
0:02:53.4]} 10. dxc5 {[%clk 0:02:42.3]} 10... bxc5 {[%clk 0:02:52.1]} 11. Nf1
{[%clk 0:02:42.4]} 11... a5 {[%clk 0:02:45.4]} 12. Ng3 {[%clk 0:02:38.7]} 12...
d5 {[%clk 0:02:36.8]} 13. Bd3 {[%clk 0:02:36.3]} 13... Ba6 {[%clk 0:02:36.4]}
14. h4 {[%clk 0:02:34.2]} 14... Bxd3 {[%clk 0:02:32.3]} 15. Qxd3 {[%clk
0:02:35.1]} 15... Nbd7 {[%clk 0:02:29.7]} 16. b3 {[%clk 0:02:05.2]} 16... a4
{[%clk 0:02:28.4]} 17. Bf4 {[%clk 0:02:00.2]} 17... Qb6 {[%clk 0:02:25.6]} 18.
c4 {[%clk 0:01:57]} 18... Rfd8 {[%clk 0:02:21.3]} 19. h5 {[%clk 0:01:48.9]}
19... h6 {[%clk 0:02:21]} 20. Nd2 {[%clk 0:01:29.5]} 20... Bd6 {[%clk
0:02:17.8]} 21. Bxd6 {[%clk 0:01:18.3]} 21... Qxd6 {[%clk 0:02:18.7]} 22. Qe2
{[%clk 0:01:19.1]} 22... Qf4 {[%clk 0:02:13.2]} 23. cxd5 {[%clk 0:01:10.2]}
23... exd5 {[%clk 0:02:06]} 24. Nf3 {[%clk 0:01:11.1]} 24... Qg4 {[%clk
0:01:52.5]} 25. Qc2 {[%clk 0:01:04.7]} 25... axb3 {[%clk 0:01:44.3]} 26. axb3
{[%clk 0:01:02.3]} 26... Rxa1 {[%clk 0:01:45.2]} 27. Rxa1 {[%clk 0:01:00.5]}
27... Nxh5 {[%clk 0:01:32.5]} 28. Nxh5 {[%clk 0:01:01.4]} 28... Qxh5 {[%clk
0:01:32.1]} 29. Ra7 {[%clk 0:01:01.6]} 29... d4 {[%clk 0:01:23.3]} 30. Qc4
{[%clk 0:00:56.4]} 30... Qf5 {[%clk 0:01:14.4]} 31. b4 {[%clk 0:00:48.7]} 31...
cxb4 {[%clk 0:01:10.3]} 32. Qxd4 {[%clk 0:00:41.1]} 32... b3 {[%clk 0:01:00.3]}
33. Rb7 {[%clk 0:00:34.1]} 33... Qc2 {[%clk 0:00:51.6]} 34. Rxd7 {[%clk
0:00:21.8]} 34... Rxd7 {[%clk 0:00:47.3]} 35. Qxd7 {[%clk 0:00:22.7]} 35... b2
{[%clk 0:00:45.9]} 36. Nd2 {[%clk 0:00:08.6]} 36... Qd1+ {[%clk 0:00:24.5]} 37.
Kh2 {[%clk 0:00:06.8]} 37... Qh5+ {[%clk 0:00:18.9]} 38. Kg1 {[%clk 0:00:06.3]}
38... Qd1+ {[%clk 0:00:17.9]} 39. Kh2 {[%clk 0:00:06.8]} 39... b1=Q {[%clk
0:00:17.3]} 40. Qe8+ {[%clk 0:00:05.8]} 40... Kh7 {[%clk 0:00:17.1]} 41. Nxb1
{[%clk 0:00:06.6]} 41... Qxb1 {[%clk 0:00:15.7]} 42. Qxf7 {[%clk 0:00:06.9]}
42... Qb8+ {[%clk 0:00:14.7]} 43. g3 {[%clk 0:00:06.6]} 43... Qe5 {[%clk
0:00:13.6]} 44. Qf3 {[%clk 0:00:05.9]} 44... Kg6 {[%clk 0:00:13.1]} 45. Kg2
{[%clk 0:00:06.1]} 45... Kg5 {[%clk 0:00:12.6]} 46. Kh3 {[%clk 0:00:06.3]} 46...
Qf5+ {[%clk 0:00:11.7]} 47. Kg2 {[%clk 0:00:06.8]} 47... Qe5 {[%clk 0:00:10.4]}
48. Qd3 {[%clk 0:00:06.2]} 48... Kf6 {[%clk 0:00:08.2]} 49. Qd8+ {[%clk
0:00:05.8]} 49... Qe7 {[%clk 0:00:07.9]} 50. Qb6+ {[%clk 0:00:06]} 50... Kf7
{[%clk 0:00:07.6]} 51. Qd4 {[%clk 0:00:06]} 51... Qe6 {[%clk 0:00:07.7]} 52. Kh2
{[%clk 0:00:06]} 52... Qf5 {[%clk 0:00:07.8]} 53. Kg2 {[%clk 0:00:05.7]} 53...
Kg6 {[%clk 0:00:08.1]} 54. g4 {[%clk 0:00:04.9]} 54... Qe6 {[%clk 0:00:07.7]}
55. Kg3 {[%clk 0:00:04.7]} 55... Kh7 {[%clk 0:00:08]} 56. Qf4 {[%clk 0:00:04.4]}
56... Qd5 {[%clk 0:00:07.9]} 57. f3 {[%clk 0:00:03.5]} 57... Qd1 {[%clk
0:00:07.5]} 58. Qe4+ {[%clk 0:00:04]} 58... Kg8 {[%clk 0:00:07.3]} 59. Kf4
{[%clk 0:00:04.5]} 59... Qd2+ {[%clk 0:00:06.7]} 60. Kf5 {[%clk 0:00:03.6]}
60... Qg5+ {[%clk 0:00:05]} 61. Ke6 {[%clk 0:00:04.1]} 61... Qf6+ {[%clk
0:00:05.3]} 62. Kd5 {[%clk 0:00:04.6]} 62... Kf7 {[%clk 0:00:05.6]} 63. Kc5
{[%clk 0:00:03.5]} 63... Qe7+ {[%clk 0:00:05.3]} 64. Kd5 {[%clk 0:00:01.7]}
64... Qd7+ {[%clk 0:00:04.7]} 65. Ke5 {[%clk 0:00:01.3]} 65... Qc7+ {[%clk
0:00:04.6]} 0-1

[Event "Early-Titled-Tuesday-Blitz-January-16-2024"]
[Site "Chess.com"]
[Date "2024.01.16"]
[Round "11"]
[White "mbchess97"]
[Black "Shuvalov"]
[Result "1-0"]
[WhiteElo "2357"]
[BlackElo "2482"]
[TimeControl "180+1"]
[EndTime "10:10:44 PST"]
[Termination "mbchess97 won by checkmate"]

1. c4 {[%clk 0:03:00.9]} 1... Nf6 {[%clk 0:02:34.7]} 2. g3 {[%clk 0:03:01.1]}
2... g6 {[%clk 0:02:34.2]} 3. Bg2 {[%clk 0:03:01.5]} 3... Bg7 {[%clk 0:02:34.6]}
4. Nc3 {[%clk 0:03:00.3]} 4... O-O {[%clk 0:02:33.8]} 5. d4 {[%clk 0:03:00.3]}
5... e5 {[%clk 0:02:29.7]} 6. dxe5 {[%clk 0:02:50.3]} 6... Ng4 {[%clk
0:02:29.2]} 7. Nf3 {[%clk 0:02:41.8]} 7... Nc6 {[%clk 0:02:27.4]} 8. Bg5 {[%clk
0:02:31.8]} 8... f6 {[%clk 0:02:17.2]} 9. exf6 {[%clk 0:02:31.4]} 9... Bxf6
{[%clk 0:02:06.9]} 10. Qd5+ {[%clk 0:02:14.5]} 10... Kg7 {[%clk 0:02:04.4]} 11.
h4 {[%clk 0:01:54.1]} 11... Nb4 {[%clk 0:01:57.5]} 12. Qd2 {[%clk 0:01:48.4]}
12... d5 {[%clk 0:01:47.9]} 13. cxd5 {[%clk 0:01:42]} 13... Bf5 {[%clk
0:01:41.2]} 14. O-O {[%clk 0:01:39.4]} 14... h6 {[%clk 0:01:35.6]} 15. Bxf6+
{[%clk 0:01:37.1]} 15... Qxf6 {[%clk 0:01:36.5]} 16. Nd4 {[%clk 0:01:33]} 16...
Bd7 {[%clk 0:01:29.6]} 17. e4 {[%clk 0:01:27.9]} 17... Ne5 {[%clk 0:01:26]} 18.
a3 {[%clk 0:01:16.4]} 18... Nc4 {[%clk 0:00:59.7]} 19. Qd1 {[%clk 0:01:12.5]}
19... Nxb2 {[%clk 0:00:56.3]} 20. Qb3 {[%clk 0:01:04.1]} 20... N4d3 {[%clk
0:00:50.8]} 21. Nf3 {[%clk 0:00:47.7]} 21... Bg4 {[%clk 0:00:48.4]} 22. e5
{[%clk 0:00:46.3]} 22... Qb6 {[%clk 0:00:33.1]} 23. Qxb6 {[%clk 0:00:33]} 23...
axb6 {[%clk 0:00:34]} 24. Nh2 {[%clk 0:00:32.3]} 24... Bd7 {[%clk 0:00:30.5]}
25. e6 {[%clk 0:00:31.8]} 25... Be8 {[%clk 0:00:28]} 26. Ng4 {[%clk 0:00:27.7]}
26... Nc4 {[%clk 0:00:21.5]} 27. Rfd1 {[%clk 0:00:22.1]} 27... Ndb2 {[%clk
0:00:19.1]} 28. Rd4 {[%clk 0:00:20]} 28... Rxa3 {[%clk 0:00:17.7]} 29. Rxa3
{[%clk 0:00:19.2]} 29... Nxa3 {[%clk 0:00:18.6]} 30. Ne5 {[%clk 0:00:17.5]}
30... Nac4 {[%clk 0:00:17.6]} 31. Nxc4 {[%clk 0:00:16.9]} 31... Nxc4 {[%clk
0:00:17]} 32. Rxc4 {[%clk 0:00:17.2]} 32... c6 {[%clk 0:00:16.8]} 33. dxc6
{[%clk 0:00:17.3]} 33... bxc6 {[%clk 0:00:17.7]} 34. Bxc6 {[%clk 0:00:17]} 34...
Bxc6 {[%clk 0:00:17.1]} 35. Rxc6 {[%clk 0:00:17.3]} 35... Re8 {[%clk 0:00:18]}
36. Rxb6 {[%clk 0:00:16.6]} 36... Kf6 {[%clk 0:00:18.4]} 37. Nd5+ {[%clk
0:00:16.7]} 37... Ke5 {[%clk 0:00:18.4]} 38. Nc7 {[%clk 0:00:16.3]} 38... Re7
{[%clk 0:00:18.6]} 39. Rc6 {[%clk 0:00:14.9]} 39... g5 {[%clk 0:00:18.2]} 40.
hxg5 {[%clk 0:00:14.1]} 40... hxg5 {[%clk 0:00:19.1]} 41. Kg2 {[%clk 0:00:14.6]}
41... g4 {[%clk 0:00:19.3]} 42. Rc4 {[%clk 0:00:14.2]} 42... Kd6 {[%clk
0:00:18.7]} 43. Nb5+ {[%clk 0:00:12.4]} 43... Kd5 {[%clk 0:00:18.9]} 44. Rxg4
{[%clk 0:00:10.5]} 44... Rb7 {[%clk 0:00:18.7]} 45. Nc3+ {[%clk 0:00:09.1]}
45... Kxe6 {[%clk 0:00:18.5]} 46. Ne4 {[%clk 0:00:08.6]} 46... Kf5 {[%clk
0:00:18.2]} 47. Rh4 {[%clk 0:00:08.5]} 47... Rb2 {[%clk 0:00:17.3]} 48. Nd6+
{[%clk 0:00:07.8]} 48... Ke6 {[%clk 0:00:17.2]} 49. Nc4 {[%clk 0:00:08.1]} 49...
Ra2 {[%clk 0:00:17.4]} 50. Ne3 {[%clk 0:00:08.5]} 50... Kf6 {[%clk 0:00:17.5]}
51. Kf3 {[%clk 0:00:09.4]} 51... Kg5 {[%clk 0:00:17.6]} 52. Rb4 {[%clk
0:00:09.4]} 52... Rd2 {[%clk 0:00:16.8]} 53. Rb5+ {[%clk 0:00:09.8]} 53... Kf6
{[%clk 0:00:17.1]} 54. g4 {[%clk 0:00:10]} 54... Ra2 {[%clk 0:00:16.6]} 55. Kg3
{[%clk 0:00:10.2]} 55... Ra3 {[%clk 0:00:16.4]} 56. Kf4 {[%clk 0:00:10.3]} 56...
Ra4+ {[%clk 0:00:16.1]} 57. Kg3 {[%clk 0:00:10.3]} 57... Ra3 {[%clk 0:00:17]}
58. Rb4 {[%clk 0:00:10.2]} 58... Ke5 {[%clk 0:00:16.5]} 59. f4+ {[%clk
0:00:09.7]} 59... Ke6 {[%clk 0:00:14.4]} 60. Kf3 {[%clk 0:00:10]} 60... Rc3
{[%clk 0:00:13.9]} 61. Ke4 {[%clk 0:00:10.2]} 61... Ra3 {[%clk 0:00:14.1]} 62.
g5 {[%clk 0:00:10.3]} 62... Kd6 {[%clk 0:00:14.2]} 63. f5 {[%clk 0:00:09.9]}
63... Kc5 {[%clk 0:00:14.3]} 64. Rc4+ {[%clk 0:00:09.9]} 64... Kb5 {[%clk
0:00:13.8]} 65. Rd4 {[%clk 0:00:10.4]} 65... Ra1 {[%clk 0:00:13.9]} 66. Ke5
{[%clk 0:00:09.3]} 66... Rg1 {[%clk 0:00:14.4]} 67. g6 {[%clk 0:00:08.9]} 67...
Kc5 {[%clk 0:00:14.8]} 68. Rc4+ {[%clk 0:00:08.1]} 68... Kb5 {[%clk 0:00:15]}
69. Rc8 {[%clk 0:00:07.7]} 69... Kb6 {[%clk 0:00:15]} 70. Kf6 {[%clk 0:00:07.1]}
70... Kb7 {[%clk 0:00:15.1]} 71. Re8 {[%clk 0:00:07.1]} 71... Kc6 {[%clk
0:00:15.1]} 72. g7 {[%clk 0:00:07.4]} 72... Kd7 {[%clk 0:00:15.2]} 73. g8=Q
{[%clk 0:00:07.3]} 73... Re1 {[%clk 0:00:15.9]} 74. Qe6+ {[%clk 0:00:06.8]}
74... Kc7 {[%clk 0:00:16]} 75. Rc8+ {[%clk 0:00:07.3]} 75... Kb7 {[%clk
0:00:16.9]} 76. Qc6+ {[%clk 0:00:07.6]} 76... Ka7 {[%clk 0:00:17.8]} 77. Ra8#
{[%clk 0:00:08]} 1-0

[Event "Early-Titled-Tuesday-Blitz-January-16-2024"]
[Site "Chess.com"]
[Date "2024.01.16"]
[Round "11"]
[White "UK_23"]
[Black "Barmen_EV"]
[Result "0-1"]
[WhiteElo "2380"]
[BlackElo "2533"]
[TimeControl "180+1"]
[EndTime "10:10:53 PST"]
[Termination "Barmen_EV won by checkmate"]

1. e4 {[%clk 0:02:55.2]} 1... c5 {[%clk 0:02:59.8]} 2. Nf3 {[%clk 0:02:32.4]}
2... Nc6 {[%clk 0:02:58.8]} 3. Bb5 {[%clk 0:02:31.3]} 3... e5 {[%clk 0:02:58.2]}
4. Bxc6 {[%clk 0:02:29.3]} 4... dxc6 {[%clk 0:02:59.1]} 5. d3 {[%clk 0:02:29]}
5... Bd6 {[%clk 0:02:57.4]} 6. Nbd2 {[%clk 0:02:28.7]} 6... f6 {[%clk
0:02:56.3]} 7. a4 {[%clk 0:02:28.1]} 7... a5 {[%clk 0:02:54.6]} 8. Nc4 {[%clk
0:02:27.9]} 8... Bc7 {[%clk 0:02:54.8]} 9. b3 {[%clk 0:02:28.2]} 9... Ne7 {[%clk
0:02:54.8]} 10. Ba3 {[%clk 0:02:28.1]} 10... b6 {[%clk 0:02:54.6]} 11. Nh4
{[%clk 0:02:26.7]} 11... Be6 {[%clk 0:02:50.9]} 12. Ne3 {[%clk 0:02:25.6]} 12...
Qd7 {[%clk 0:02:47.8]} 13. h3 {[%clk 0:02:23.2]} 13... O-O-O {[%clk 0:02:41.5]}
14. Qf3 {[%clk 0:02:20]} 14... g5 {[%clk 0:02:11]} 15. Nhf5 {[%clk 0:01:50.3]}
15... Nxf5 {[%clk 0:02:09]} 16. Nxf5 {[%clk 0:01:48.3]} 16... Bxf5 {[%clk
0:02:09.2]} 17. Qxf5 {[%clk 0:01:46.9]} 17... Qxf5 {[%clk 0:02:09.2]} 18. exf5
{[%clk 0:01:47.8]} 18... h5 {[%clk 0:02:07]} 19. g3 {[%clk 0:01:45.5]} 19... e4
{[%clk 0:01:40.5]} 20. dxe4 {[%clk 0:01:39.1]} 20... Rhe8 {[%clk 0:01:39]} 21.
f3 {[%clk 0:01:39]} 21... Bxg3+ {[%clk 0:01:37.8]} 22. Ke2 {[%clk 0:01:39.5]}
22... Be5 {[%clk 0:01:36.6]} 23. Rad1 {[%clk 0:01:38.4]} 23... Bd4 {[%clk
0:01:33.5]} 24. Bc1 {[%clk 0:01:34.4]} 24... b5 {[%clk 0:01:32]} 25. Bd2 {[%clk
0:01:31.7]} 25... bxa4 {[%clk 0:01:09.1]} 26. bxa4 {[%clk 0:01:32.6]} 26... c4
{[%clk 0:01:04.8]} 27. Bxa5 {[%clk 0:01:31.2]} 27... Rd5 {[%clk 0:01:01.3]} 28.
Be1 {[%clk 0:01:14.4]} 28... Bb6 {[%clk 0:00:47.7]} 29. Rb1 {[%clk 0:01:07.5]}
29... Ba7 {[%clk 0:00:33.9]} 30. Bf2 {[%clk 0:00:58.6]} 30... c5 {[%clk
0:00:29.6]} 31. Rhd1 {[%clk 0:00:53.2]} 31... Rxf5 {[%clk 0:00:28.2]} 32. Rd6
{[%clk 0:00:52.8]} 32... Rfe5 {[%clk 0:00:23.8]} 33. Rxf6 {[%clk 0:00:51.4]}
33... g4 {[%clk 0:00:23.4]} 34. hxg4 {[%clk 0:00:51]} 34... hxg4 {[%clk
0:00:24.3]} 35. Bg3 {[%clk 0:00:48.2]} 35... gxf3+ {[%clk 0:00:23.3]} 36. Kxf3
{[%clk 0:00:49.1]} 36... Rxe4 {[%clk 0:00:16.8]} 37. Rc6+ {[%clk 0:00:45]} 37...
Kd8 {[%clk 0:00:17.3]} 38. Rb7 {[%clk 0:00:28.4]} 38... Re3+ {[%clk 0:00:17.1]}
39. Kg2 {[%clk 0:00:26.8]} 39... Re2+ {[%clk 0:00:16.5]} 40. Kf1 {[%clk
0:00:27.3]} 40... R2e7 {[%clk 0:00:07.7]} 41. Bh4 {[%clk 0:00:26.3]} 41... Rf8+
{[%clk 0:00:05.1]} 42. Kg2 {[%clk 0:00:24.7]} 42... Rg8+ {[%clk 0:00:05.7]} 43.
Kf3 {[%clk 0:00:25.1]} 43... Rf8+ {[%clk 0:00:05.9]} 44. Kg4 {[%clk 0:00:23.3]}
44... Rg8+ {[%clk 0:00:06.4]} 45. Kf5 {[%clk 0:00:23.8]} 45... Rf8+ {[%clk
0:00:06.6]} 46. Kg6 {[%clk 0:00:21.2]} 46... Rg8+ {[%clk 0:00:06.2]} 47. Kf5
{[%clk 0:00:17.4]} 47... Rf8+ {[%clk 0:00:06.2]} 48. Rf6 {[%clk 0:00:15.9]}
48... Rxb7 {[%clk 0:00:03.5]} 49. Rxf8+ {[%clk 0:00:15.5]} 49... Kd7 {[%clk
0:00:03.7]} 50. Ke5 {[%clk 0:00:11.4]} 50... Kc6 {[%clk 0:00:02]} 51. Rf6+
{[%clk 0:00:09.7]} 51... Kc7 {[%clk 0:00:01.9]} 52. Kd5 {[%clk 0:00:09.7]} 52...
Rb2 {[%clk 0:00:02]} 53. Rf7+ {[%clk 0:00:09.8]} 53... Kb8 {[%clk 0:00:01.8]}
54. Kxc4 {[%clk 0:00:07.4]} 54... Rxc2+ {[%clk 0:00:01.9]} 55. Kb5 {[%clk
0:00:08.1]} 55... c4 {[%clk 0:00:02.6]} 56. Ka6 {[%clk 0:00:08.1]} 56... Be3
{[%clk 0:00:02.4]} 57. Bg3+ {[%clk 0:00:08.2]} 57... Kc8 {[%clk 0:00:02.5]} 58.
Kb5 {[%clk 0:00:06]} 58... c3 {[%clk 0:00:02.7]} 59. Rf3 {[%clk 0:00:06.7]}
59... Bd2 {[%clk 0:00:03]} 60. Rf6 {[%clk 0:00:06]} 60... Rb2+ {[%clk
0:00:03.4]} 61. Ka6 {[%clk 0:00:05.3]} 61... c2 {[%clk 0:00:03.8]} 62. Rc6+
{[%clk 0:00:06]} 62... Kd7 {[%clk 0:00:04.1]} 63. Rc7+ {[%clk 0:00:05.1]} 63...
Kd8 {[%clk 0:00:04.8]} 64. Rc4 {[%clk 0:00:05.3]} 64... c1=Q {[%clk 0:00:05.1]}
65. Rxc1 {[%clk 0:00:05.9]} 65... Bxc1 {[%clk 0:00:06]} 66. a5 {[%clk
0:00:05.8]} 66... Rb3 {[%clk 0:00:06.2]} 67. Be1 {[%clk 0:00:05.8]} 67... Be3
{[%clk 0:00:06]} 68. Bh4+ {[%clk 0:00:05.6]} 68... Kd7 {[%clk 0:00:06.4]} 69.
Bf6 {[%clk 0:00:06.1]} 69... Kc6 {[%clk 0:00:06.7]} 70. Bd8 {[%clk 0:00:06.1]}
70... Rb8 {[%clk 0:00:06.8]} 71. Bf6 {[%clk 0:00:04.4]} 71... Ra8# {[%clk
0:00:07.3]} 0-1

[Event "Early-Titled-Tuesday-Blitz-January-16-2024"]
[Site "Chess.com"]
[Date "2024.01.16"]
[Round "11"]
[White "MIss_MIaMI"]
[Black "xakevicius91"]
[Result "1-0"]
[WhiteElo "2437"]
[BlackElo "2530"]
[TimeControl "180+1"]
[EndTime "10:10:57 PST"]
[Termination "MIss_MIaMI won by resignation"]

1. e4 {[%clk 0:03:00.9]} 1... c5 {[%clk 0:02:56]} 2. Nf3 {[%clk 0:03:00.8]} 2...
a6 {[%clk 0:02:55]} 3. d4 {[%clk 0:03:01]} 3... cxd4 {[%clk 0:02:55.9]} 4. c3
{[%clk 0:03:01.6]} 4... g6 {[%clk 0:02:54.2]} 5. Bd3 {[%clk 0:03:01.2]} 5... Nc6
{[%clk 0:02:52]} 6. O-O {[%clk 0:03:01]} 6... d5 {[%clk 0:02:52.4]} 7. exd5
{[%clk 0:03:00.7]} 7... Qxd5 {[%clk 0:02:52.6]} 8. cxd4 {[%clk 0:02:57.8]} 8...
Bg4 {[%clk 0:02:52.3]} 9. Nc3 {[%clk 0:02:52.4]} 9... Qd6 {[%clk 0:02:42.1]} 10.
Ne4 {[%clk 0:02:40.5]} 10... Qc7 {[%clk 0:02:27.8]} 11. Be3 {[%clk 0:02:31.5]}
11... Bg7 {[%clk 0:02:26.2]} 12. Rc1 {[%clk 0:02:31.3]} 12... Rd8 {[%clk
0:02:24.5]} 13. Be2 {[%clk 0:01:59.4]} 13... Qb8 {[%clk 0:02:07.6]} 14. d5
{[%clk 0:01:51]} 14... Nf6 {[%clk 0:02:07]} 15. Nxf6+ {[%clk 0:01:37.1]} 15...
Bxf6 {[%clk 0:02:07.9]} 16. Bb6 {[%clk 0:01:26.1]} 16... Rd7 {[%clk 0:01:59.5]}
17. h3 {[%clk 0:01:13]} 17... Bxf3 {[%clk 0:01:57.2]} 18. Bxf3 {[%clk
0:01:13.9]} 18... O-O {[%clk 0:01:57.3]} 19. Re1 {[%clk 0:01:08.4]} 19... Ne5
{[%clk 0:01:52.3]} 20. Be4 {[%clk 0:01:06.3]} 20... Rc8 {[%clk 0:01:47.8]} 21.
Qa4 {[%clk 0:01:02.7]} 21... Kg7 {[%clk 0:01:41.4]} 22. f4 {[%clk 0:00:55.7]}
22... Rxc1 {[%clk 0:01:37.2]} 23. Rxc1 {[%clk 0:00:56.6]} 23... Qd6 {[%clk
0:01:36.7]} 24. Bc5 {[%clk 0:00:52.4]} 24... Qc7 {[%clk 0:01:14.5]} 25. fxe5
{[%clk 0:00:52.4]} 25... Bxe5 {[%clk 0:01:15.4]} 26. Be3 {[%clk 0:00:47]} 26...
Qd8 {[%clk 0:01:13]} 27. Bd4 {[%clk 0:00:43]} 27... f6 {[%clk 0:01:02.5]} 28.
Bxe5 {[%clk 0:00:42.7]} 28... fxe5 {[%clk 0:01:03.4]} 29. Qc4 {[%clk 0:00:40.5]}
29... Rd6 {[%clk 0:01:01.3]} 30. Qc3 {[%clk 0:00:40.5]} 30... Qb6+ {[%clk
0:01:01.6]} 31. Kh2 {[%clk 0:00:39.4]} 31... Qf2 {[%clk 0:00:52.2]} 32. Qxe5+
{[%clk 0:00:38.5]} 32... Rf6 {[%clk 0:00:52.9]} 33. Qxe7+ {[%clk 0:00:34.3]}
33... Kh6 {[%clk 0:00:53.4]} 34. Qe5 {[%clk 0:00:28.4]} 34... Kg7 {[%clk
0:00:49]} 35. Rc7+ {[%clk 0:00:27.4]} 35... Kh6 {[%clk 0:00:48.4]} 36. Rc3
{[%clk 0:00:19.8]} 36... Qb6 {[%clk 0:00:43.8]} 37. Rg3 {[%clk 0:00:15.5]} 37...
Kg7 {[%clk 0:00:42.5]} 38. d6 {[%clk 0:00:15.1]} 38... Qxd6 {[%clk 0:00:41]} 39.
Qxd6 {[%clk 0:00:15.6]} 39... Rxd6 {[%clk 0:00:41.9]} 40. Rb3 {[%clk 0:00:15.9]}
40... b5 {[%clk 0:00:41.6]} 41. Rc3 {[%clk 0:00:15.6]} 41... Rd2 {[%clk
0:00:38]} 42. Rc2 {[%clk 0:00:15.3]} 42... Rd4 {[%clk 0:00:38.3]} 43. Bf3 {[%clk
0:00:15.4]} 43... Rb4 {[%clk 0:00:35.1]} 44. b3 {[%clk 0:00:15.5]} 44... Rd4
{[%clk 0:00:34.9]} 45. Rc6 {[%clk 0:00:16]} 45... a5 {[%clk 0:00:35.1]} 46. Rc5
{[%clk 0:00:16.7]} 46... Rb4 {[%clk 0:00:34.4]} 47. Be2 {[%clk 0:00:15.8]} 47...
a4 {[%clk 0:00:34.5]} 48. Rxb5 {[%clk 0:00:15.8]} 48... Re4 {[%clk 0:00:35]} 49.
Bf3 {[%clk 0:00:15.6]} 49... Rd4 {[%clk 0:00:33.4]} 50. bxa4 {[%clk 0:00:15.7]}
50... Rxa4 {[%clk 0:00:34.3]} 51. Rb2 {[%clk 0:00:16]} 51... h5 {[%clk
0:00:33.5]} 52. Kg3 {[%clk 0:00:15.7]} 52... Ra3 {[%clk 0:00:31.1]} 53. Kf2
{[%clk 0:00:15.7]} 53... Kf6 {[%clk 0:00:31.1]} 54. Bd5 {[%clk 0:00:16.1]} 54...
g5 {[%clk 0:00:31.1]} 55. Bb3 {[%clk 0:00:16.8]} 55... g4 {[%clk 0:00:31]} 56.
hxg4 {[%clk 0:00:16.6]} 56... hxg4 {[%clk 0:00:31.9]} 57. Kg3 {[%clk 0:00:17.3]}
57... Kg5 {[%clk 0:00:32.4]} 58. Rc2 {[%clk 0:00:17.7]} 58... Ra5 {[%clk
0:00:32.1]} 59. Rc4 {[%clk 0:00:17.4]} 59... Kf5 {[%clk 0:00:30.9]} 60. Rxg4
{[%clk 0:00:17.4]} 60... Rc5 {[%clk 0:00:31.8]} 61. Rf4+ {[%clk 0:00:17.8]}
61... Kg5 {[%clk 0:00:31.9]} 62. Rf3 {[%clk 0:00:17.8]} 62... Ra5 {[%clk
0:00:30]} 63. Rd3 {[%clk 0:00:18.2]} 63... Kf6 {[%clk 0:00:29.1]} 64. Rd5 {[%clk
0:00:18.1]} 64... Ra6 {[%clk 0:00:28.1]} 65. Kf3 {[%clk 0:00:16.4]} 65... Rc6
{[%clk 0:00:27.8]} 66. Rd3 {[%clk 0:00:16.1]} 66... Ke5 {[%clk 0:00:27.1]} 67.
g4 {[%clk 0:00:16.4]} 67... Rf6+ {[%clk 0:00:27.2]} 68. Kg3 {[%clk 0:00:16.6]}
68... Rf1 {[%clk 0:00:27.2]} 69. Rd5+ {[%clk 0:00:16.8]} 69... Ke4 {[%clk
0:00:26.9]} 70. Rd2 {[%clk 0:00:16]} 70... Rg1+ {[%clk 0:00:27]} 71. Rg2 {[%clk
0:00:16.8]} 71... Ra1 {[%clk 0:00:27.2]} 72. g5 {[%clk 0:00:17]} 72... Kf5
{[%clk 0:00:27.6]} 73. Kf2 {[%clk 0:00:13.8]} 73... Kg6 {[%clk 0:00:27.1]} 74.
Ke3 {[%clk 0:00:14.3]} 74... Re1+ {[%clk 0:00:26.7]} 75. Kd4 {[%clk 0:00:14.8]}
75... Rb1 {[%clk 0:00:23.6]} 76. Kc3 {[%clk 0:00:14.6]} 76... Rc1+ {[%clk
0:00:23.8]} 77. Bc2+ {[%clk 0:00:14.3]} 77... Kg7 {[%clk 0:00:22.8]} 78. g6
{[%clk 0:00:14.8]} 78... Ra1 {[%clk 0:00:22.9]} 79. Kb2 {[%clk 0:00:15.5]} 79...
Rg1 {[%clk 0:00:22.9]} 80. Rxg1 {[%clk 0:00:15.3]} 80... Kg8 {[%clk 0:00:23.6]}
81. g7 {[%clk 0:00:14.5]} 81... Kf7 {[%clk 0:00:22.7]} 82. Bb3+ {[%clk 0:00:15]}
82... Kf6 {[%clk 0:00:23.6]} 83. g8=Q {[%clk 0:00:15.2]} 83... Ke5 {[%clk
0:00:24.5]} 84. Qe6+ {[%clk 0:00:15]} 84... Kf4 {[%clk 0:00:25.4]} 85. Rg4+
{[%clk 0:00:15.2]} 85... Kf3 {[%clk 0:00:24.9]} 86. Qf5+ {[%clk 0:00:15.9]} 1-0